[Event "Early-Titled-Tuesday-Blitz-February-06-2024"]
[Site "Chess.com"]
[Date "2024.02.06"]
[Round "8"]
[White "scarabee43"]
[Black "FREDERICKtheMATE"]
[Result "0-1"]
[WhiteElo "2856"]
[BlackElo "2671"]
[TimeControl "180+1"]
[EndTime "9:28:59 PST"]
[Termination "FREDERICKtheMATE won by checkmate"]

1. Nf3 {[%clk 0:03:00.9]} 1... Nf6 {[%clk 0:02:59]} 2. c4 {[%clk 0:03:01.2]}
2... c5 {[%clk 0:02:58.4]} 3. Nc3 {[%clk 0:03:01.3]} 3... g6 {[%clk 0:02:57.9]}
4. b3 {[%clk 0:02:58.8]} 4... Bg7 {[%clk 0:02:57.6]} 5. Bb2 {[%clk 0:02:59.5]}
5... O-O {[%clk 0:02:58.1]} 6. g3 {[%clk 0:02:58.9]} 6... b6 {[%clk 0:02:57.7]}
7. Bg2 {[%clk 0:02:59.2]} 7... Bb7 {[%clk 0:02:58.3]} 8. O-O {[%clk 0:02:59.8]}
8... Nc6 {[%clk 0:02:58.8]} 9. d4 {[%clk 0:02:58.7]} 9... Nxd4 {[%clk
0:02:57.1]} 10. Nxd4 {[%clk 0:02:58.3]} 10... Bxg2 {[%clk 0:02:55.6]} 11. Kxg2
{[%clk 0:02:56.6]} 11... cxd4 {[%clk 0:02:56]} 12. Qxd4 {[%clk 0:02:57.1]} 12...
d5 {[%clk 0:02:39.2]} 13. Nxd5 {[%clk 0:02:56.1]} 13... Nh5 {[%clk 0:02:37.9]}
14. Qh4 {[%clk 0:02:25.4]} 14... Bxb2 {[%clk 0:02:33.1]} 15. Rad1 {[%clk
0:02:26]} 15... Qb8 {[%clk 0:01:50.1]} 16. Nxe7+ {[%clk 0:02:14.4]} 16... Kh8
{[%clk 0:01:49.5]} 17. Rd7 {[%clk 0:02:15]} 17... Qe5 {[%clk 0:01:40]} 18. e3
{[%clk 0:02:06.8]} 18... Qe6 {[%clk 0:01:34.4]} 19. Qh3 {[%clk 0:01:43.4]} 19...
Qxh3+ {[%clk 0:01:16.3]} 20. Kxh3 {[%clk 0:01:43.8]} 20... Nf6 {[%clk 0:01:15]}
21. Rb7 {[%clk 0:01:36.1]} 21... Rfb8 {[%clk 0:01:12.7]} 22. Rxb8+ {[%clk
0:01:31.5]} 22... Rxb8 {[%clk 0:01:13.6]} 23. Nc6 {[%clk 0:01:31.7]} 23... Rb7
{[%clk 0:01:01.8]} 24. Rb1 {[%clk 0:00:53.3]} 24... Bc3 {[%clk 0:01:01.5]} 25.
Rc1 {[%clk 0:00:50.5]} 25... Ne4 {[%clk 0:00:53.6]} 26. f3 {[%clk 0:00:49.2]}
26... Bd2 {[%clk 0:00:44.3]} 27. Rc2 {[%clk 0:00:47.2]} 27... Ng5+ {[%clk
0:00:43.9]} 28. Kg2 {[%clk 0:00:39.1]} 28... Bxe3 {[%clk 0:00:43.4]} 29. Re2
{[%clk 0:00:39.7]} 29... Bc5 {[%clk 0:00:39.5]} 30. Re8+ {[%clk 0:00:35.4]}
30... Kg7 {[%clk 0:00:39.3]} 31. b4 {[%clk 0:00:36.1]} 31... Bf8 {[%clk
0:00:36.4]} 32. f4 {[%clk 0:00:23.2]} 32... Ne6 {[%clk 0:00:35.7]} 33. Ra8
{[%clk 0:00:21.6]} 33... a5 {[%clk 0:00:19.4]} 34. bxa5 {[%clk 0:00:20.5]} 34...
bxa5 {[%clk 0:00:20.3]} 35. Rxa5 {[%clk 0:00:20.7]} 35... Rb2+ {[%clk
0:00:19.9]} 36. Kh3 {[%clk 0:00:21.3]} 36... Bc5 {[%clk 0:00:18.5]} 37. Ne5
{[%clk 0:00:17.7]} 37... Bg1 {[%clk 0:00:17.1]} 38. Nf3 {[%clk 0:00:17.5]} 38...
Bb6 {[%clk 0:00:15.8]} 39. Rd5 {[%clk 0:00:15.6]} 39... Rxa2 {[%clk 0:00:14.4]}
40. f5 {[%clk 0:00:15.6]} 40... gxf5 {[%clk 0:00:12.8]} 41. Rxf5 {[%clk
0:00:16.2]} 41... Rf2 {[%clk 0:00:12.9]} 42. Kg4 {[%clk 0:00:15.3]} 42... Nd4
{[%clk 0:00:08.6]} 43. Rg5+ {[%clk 0:00:15.4]} 43... Kf8 {[%clk 0:00:07.7]} 44.
Ne5 {[%clk 0:00:13.9]} 44... f5+ {[%clk 0:00:02.8]} 45. Kh3 {[%clk 0:00:13.9]}
45... Bc7 {[%clk 0:00:02.7]} 46. Nd7+ {[%clk 0:00:11.4]} 46... Kf7 {[%clk
0:00:03.1]} 47. Rh5 {[%clk 0:00:11.3]} 47... Kg6 {[%clk 0:00:03.1]} 48. Nf8+
{[%clk 0:00:11.1]} 48... Kxh5 {[%clk 0:00:03.1]} 49. Nxh7 {[%clk 0:00:07.3]}
49... Nf3 {[%clk 0:00:04]} 50. Nf6+ {[%clk 0:00:07.6]} 50... Kg6 {[%clk
0:00:04.2]} 51. Nd5 {[%clk 0:00:06.9]} 51... Rxh2# {[%clk 0:00:03.6]} 0-1

[Event "Early-Titled-Tuesday-Blitz-February-06-2024"]
[Site "Chess.com"]
[Date "2024.02.06"]
[Round "8"]
[White "DinaBelenkaya"]
[Black "Karttunen"]
[Result "0-1"]
[WhiteElo "2427"]
[BlackElo "2673"]
[TimeControl "180+1"]
[EndTime "9:29:00 PST"]
[Termination "Karttunen won by checkmate"]

1. Nf3 {[%clk 0:03:00.9]} 1... Nf6 {[%clk 0:02:59.5]} 2. g3 {[%clk 0:02:58.4]}
2... d5 {[%clk 0:03:00.4]} 3. Bg2 {[%clk 0:02:56.8]} 3... c5 {[%clk 0:03:00.4]}
4. d3 {[%clk 0:02:56.5]} 4... Nc6 {[%clk 0:03:00.5]} 5. Nbd2 {[%clk 0:02:56.7]}
5... e5 {[%clk 0:02:56.7]} 6. e4 {[%clk 0:02:55.3]} 6... d4 {[%clk 0:02:56.5]}
7. Nc4 {[%clk 0:02:52.3]} 7... Nd7 {[%clk 0:02:53.4]} 8. a4 {[%clk 0:02:48]}
8... Be7 {[%clk 0:02:52.3]} 9. h4 {[%clk 0:02:46.5]} 9... f6 {[%clk 0:02:47.1]}
10. h5 {[%clk 0:02:45.8]} 10... Nb6 {[%clk 0:02:43.2]} 11. b3 {[%clk 0:02:37.3]}
11... Nxc4 {[%clk 0:02:40.9]} 12. bxc4 {[%clk 0:02:37.3]} 12... Be6 {[%clk
0:02:37.4]} 13. Nh4 {[%clk 0:02:36.6]} 13... Qd7 {[%clk 0:02:35.1]} 14. Rb1
{[%clk 0:02:33.3]} 14... Nd8 {[%clk 0:02:26.6]} 15. Bf3 {[%clk 0:02:31.8]} 15...
Nf7 {[%clk 0:02:25]} 16. Nf5 {[%clk 0:02:27.4]} 16... Bf8 {[%clk 0:02:17.5]} 17.
g4 {[%clk 0:02:22.3]} 17... g6 {[%clk 0:02:12.3]} 18. hxg6 {[%clk 0:02:22.3]}
18... hxg6 {[%clk 0:02:12.4]} 19. Rxh8 {[%clk 0:01:38.1]} 19... Nxh8 {[%clk
0:02:11.7]} 20. a5 {[%clk 0:01:39]} 20... Qh7 {[%clk 0:01:56.8]} 21. c3 {[%clk
0:01:25.1]} 21... Bd7 {[%clk 0:01:44.6]} 22. Rxb7 {[%clk 0:01:13.3]} 22... gxf5
{[%clk 0:01:37.8]} 23. exf5 {[%clk 0:01:14.2]} 23... Rd8 {[%clk 0:01:29.3]} 24.
Qb3 {[%clk 0:01:11.5]} 24... Qh3 {[%clk 0:01:14.4]} 25. Ke2 {[%clk 0:01:10.3]}
25... e4 {[%clk 0:01:12.1]} 26. dxe4 {[%clk 0:00:59.2]} 26... d3+ {[%clk
0:01:11.6]} 27. Kxd3 {[%clk 0:00:35.9]} 27... Qxf3+ {[%clk 0:01:10.9]} 28. Kc2
{[%clk 0:00:35.3]} 28... Qxe4+ {[%clk 0:01:09.8]} 29. Kb2 {[%clk 0:00:34]} 29...
Nf7 {[%clk 0:01:08.4]} 30. Be3 {[%clk 0:00:31.5]} 30... Nd6 {[%clk 0:01:07.2]}
31. Rxa7 {[%clk 0:00:31.8]} 31... Nxc4+ {[%clk 0:01:07.3]} 32. Ka2 {[%clk
0:00:31.8]} 32... Bc6 {[%clk 0:00:56.8]} 33. a6 {[%clk 0:00:28.2]} 33... Qd5
{[%clk 0:00:52.3]} 34. g5 {[%clk 0:00:11.4]} 34... Nxe3 {[%clk 0:00:50.6]} 35.
fxe3 {[%clk 0:00:12.3]} 35... Qxb3+ {[%clk 0:00:50.5]} 36. Kxb3 {[%clk
0:00:13.2]} 36... fxg5 {[%clk 0:00:49]} 37. f6 {[%clk 0:00:13.4]} 37... Bd5+
{[%clk 0:00:46.9]} 38. c4 {[%clk 0:00:13]} 38... Bf7 {[%clk 0:00:46.6]} 39. Rc7
{[%clk 0:00:12.1]} 39... Ra8 {[%clk 0:00:46.2]} 40. a7 {[%clk 0:00:12.2]} 40...
Bd6 {[%clk 0:00:45.5]} 41. Rb7 {[%clk 0:00:11.7]} 41... g4 {[%clk 0:00:44.2]}
42. Kc3 {[%clk 0:00:09.8]} 42... g3 {[%clk 0:00:44.4]} 43. e4 {[%clk 0:00:03.8]}
43... g2 {[%clk 0:00:43.5]} 44. Rb1 {[%clk 0:00:04]} 44... Rxa7 {[%clk
0:00:43.6]} 45. Rg1 {[%clk 0:00:03.8]} 45... Ra2 {[%clk 0:00:43.6]} 46. Kb3
{[%clk 0:00:03.7]} 46... Rf2 {[%clk 0:00:43]} 47. Kc3 {[%clk 0:00:04.1]} 47...
Bh2 {[%clk 0:00:42.8]} 48. e5 {[%clk 0:00:04.3]} 48... Bxe5+ {[%clk 0:00:42.2]}
49. Kd3 {[%clk 0:00:04.1]} 49... Bd4 {[%clk 0:00:42.6]} 50. Rxg2 {[%clk
0:00:02.7]} 50... Rxg2 {[%clk 0:00:41.5]} 51. Ke4 {[%clk 0:00:03.1]} 51... Bxc4
{[%clk 0:00:40.8]} 52. Kf4 {[%clk 0:00:02.6]} 52... Rf2+ {[%clk 0:00:40]} 53.
Ke4 {[%clk 0:00:02.4]} 53... Re2+ {[%clk 0:00:38.1]} 54. Kf4 {[%clk 0:00:02.6]}
54... Kf7 {[%clk 0:00:38]} 55. Kf3 {[%clk 0:00:02.4]} 55... Re6 {[%clk
0:00:37.2]} 56. Kf4 {[%clk 0:00:02.3]} 56... Kxf6 {[%clk 0:00:36.3]} 57. Kf3
{[%clk 0:00:02.6]} 57... Re5 {[%clk 0:00:36.4]} 58. Kf4 {[%clk 0:00:03]} 58...
Bd5 {[%clk 0:00:35.5]} 59. Kg3 {[%clk 0:00:03.1]} 59... Rf5 {[%clk 0:00:35.4]}
60. Kg4 {[%clk 0:00:03.6]} 60... Ke5 {[%clk 0:00:34.1]} 61. Kg3 {[%clk 0:00:04]}
61... Rg5+ {[%clk 0:00:33.6]} 62. Kh4 {[%clk 0:00:04]} 62... Kf4 {[%clk
0:00:33.7]} 63. Kh3 {[%clk 0:00:04.3]} 63... Rg8 {[%clk 0:00:31.3]} 64. Kh2
{[%clk 0:00:03.4]} 64... Kf3 {[%clk 0:00:30.1]} 65. Kh3 {[%clk 0:00:03.6]} 65...
Rh8# {[%clk 0:00:29.8]} 0-1

[Event "Early-Titled-Tuesday-Blitz-February-06-2024"]
[Site "Chess.com"]
[Date "2024.02.06"]
[Round "8"]
[White "Gabrielian_Artur"]
[Black "bulletteemo"]
[Result "1-0"]
[WhiteElo "2756"]
[BlackElo "2545"]
[TimeControl "180+1"]
[EndTime "9:29:02 PST"]
[Termination "Gabrielian_Artur won on time"]

1. e4 {[%clk 0:03:00.9]} 1... c5 {[%clk 0:02:54.3]} 2. a4 {[%clk 0:02:59.7]}
2... Nc6 {[%clk 0:02:53.9]} 3. Bb5 {[%clk 0:02:59.3]} 3... g6 {[%clk 0:02:53.9]}
4. Bxc6 {[%clk 0:02:58.7]} 4... bxc6 {[%clk 0:02:54.4]} 5. d3 {[%clk 0:02:58.7]}
5... Bg7 {[%clk 0:02:54.9]} 6. Nc3 {[%clk 0:02:58.8]} 6... e5 {[%clk 0:02:52.3]}
7. Be3 {[%clk 0:02:58.2]} 7... d6 {[%clk 0:02:52.3]} 8. Qd2 {[%clk 0:02:57.9]}
8... h6 {[%clk 0:02:50.9]} 9. f4 {[%clk 0:02:57.3]} 9... Rb8 {[%clk 0:02:21.9]}
10. Rb1 {[%clk 0:02:56.1]} 10... Qa5 {[%clk 0:02:08.2]} 11. Nge2 {[%clk
0:02:54.6]} 11... Bg4 {[%clk 0:01:59.9]} 12. O-O {[%clk 0:02:44.9]} 12... Ne7
{[%clk 0:01:52.8]} 13. h3 {[%clk 0:02:08.8]} 13... Bxe2 {[%clk 0:01:33.7]} 14.
Qxe2 {[%clk 0:01:59.8]} 14... exf4 {[%clk 0:01:14.7]} 15. Bxf4 {[%clk
0:01:59.4]} 15... Qc7 {[%clk 0:01:10.2]} 16. Nd1 {[%clk 0:01:47.2]} 16... O-O
{[%clk 0:01:01.8]} 17. Ne3 {[%clk 0:01:42.8]} 17... Qd7 {[%clk 0:00:53.4]} 18.
Nc4 {[%clk 0:01:40.7]} 18... Nc8 {[%clk 0:00:41]} 19. Qg4 {[%clk 0:01:34.1]}
19... Qxg4 {[%clk 0:00:25.6]} 20. hxg4 {[%clk 0:01:34]} 20... Rd8 {[%clk
0:00:26.2]} 21. b3 {[%clk 0:01:12.1]} 21... Rb7 {[%clk 0:00:25]} 22. Rbe1 {[%clk
0:01:07.9]} 22... Rbd7 {[%clk 0:00:20.7]} 23. e5 {[%clk 0:01:05.2]} 23... d5
{[%clk 0:00:18.5]} 24. Na5 {[%clk 0:01:04.2]} 24... g5 {[%clk 0:00:13.4]} 25.
Bg3 {[%clk 0:00:43.4]} 25... Re8 {[%clk 0:00:13.8]} 26. Nxc6 {[%clk 0:00:42.2]}
26... Re6 {[%clk 0:00:14.2]} 27. Na5 {[%clk 0:00:17.7]} 27... Ne7 {[%clk
0:00:14.1]} 28. c4 {[%clk 0:00:15.2]} 28... Ng6 {[%clk 0:00:10.6]} 29. cxd5
{[%clk 0:00:14.7]} 29... Rxd5 {[%clk 0:00:11.3]} 30. Nc4 {[%clk 0:00:15]} 30...
Rxd3 {[%clk 0:00:11.6]} 31. Rf3 {[%clk 0:00:14.5]} 31... Rd5 {[%clk 0:00:09.7]}
32. Ne3 {[%clk 0:00:14.8]} 32... Rd3 {[%clk 0:00:09.2]} 33. Nf5 {[%clk
0:00:14.8]} 33... Rd5 {[%clk 0:00:07.9]} 34. Nxg7 {[%clk 0:00:14.7]} 34... Kxg7
{[%clk 0:00:08.8]} 35. Re4 {[%clk 0:00:14.2]} 35... Nxe5 {[%clk 0:00:08.3]} 36.
Rf5 {[%clk 0:00:13.1]} 36... Rd1+ {[%clk 0:00:08]} 37. Kh2 {[%clk 0:00:12.9]}
37... Nd7 {[%clk 0:00:05.9]} 38. Rxe6 {[%clk 0:00:12.2]} 38... fxe6 {[%clk
0:00:06.8]} 39. Rf3 {[%clk 0:00:12.6]} 39... Rd4 {[%clk 0:00:06.5]} 40. Bf2
{[%clk 0:00:12.2]} 40... Rxg4 {[%clk 0:00:06.2]} 41. Rd3 {[%clk 0:00:12.6]}
41... Ne5 {[%clk 0:00:05.8]} 42. Re3 {[%clk 0:00:12.4]} 42... Ng6 {[%clk
0:00:05.1]} 43. Rxe6 {[%clk 0:00:11]} 43... Nf4 {[%clk 0:00:05.2]} 44. Re7+
{[%clk 0:00:11.3]} 44... Kf6 {[%clk 0:00:05.3]} 45. Bxc5 {[%clk 0:00:11.1]}
45... Rxg2+ {[%clk 0:00:05.5]} 46. Kh1 {[%clk 0:00:11.7]} 46... Rc2 {[%clk
0:00:05.2]} 47. Rc7 {[%clk 0:00:11.4]} 47... Kf5 {[%clk 0:00:04.1]} 48. b4
{[%clk 0:00:11.1]} 48... g4 {[%clk 0:00:04.4]} 49. Rf7+ {[%clk 0:00:10.7]} 49...
Ke4 {[%clk 0:00:04.6]} 50. Re7+ {[%clk 0:00:11.1]} 50... Kf3 {[%clk 0:00:05]}
51. Re3+ {[%clk 0:00:11.3]} 51... Kf2 {[%clk 0:00:03.8]} 52. Rc3+ {[%clk
0:00:11.5]} 1-0

[Event "Early-Titled-Tuesday-Blitz-February-06-2024"]
[Site "Chess.com"]
[Date "2024.02.06"]
[Round "8"]
[White "SnekkerAndersen"]
[Black "Smiechu"]
[Result "1-0"]
[WhiteElo "2641"]
[BlackElo "2447"]
[TimeControl "180+1"]
[EndTime "9:29:05 PST"]
[Termination "SnekkerAndersen won on time"]

1. d4 {[%clk 0:03:00.9]} 1... Nf6 {[%clk 0:02:59.3]} 2. c4 {[%clk 0:03:00.9]}
2... c5 {[%clk 0:02:59.1]} 3. d5 {[%clk 0:03:01.1]} 3... e6 {[%clk 0:02:59.5]}
4. Nc3 {[%clk 0:03:01.6]} 4... exd5 {[%clk 0:02:59]} 5. cxd5 {[%clk 0:03:02.5]}
5... d6 {[%clk 0:02:59.6]} 6. Nf3 {[%clk 0:03:03.1]} 6... g6 {[%clk 0:03:00.2]}
7. Nd2 {[%clk 0:03:03.6]} 7... Nbd7 {[%clk 0:02:59.4]} 8. e4 {[%clk 0:03:04]}
8... Bg7 {[%clk 0:02:59.5]} 9. Be2 {[%clk 0:03:04.4]} 9... O-O {[%clk
0:02:59.8]} 10. O-O {[%clk 0:03:04.3]} 10... Re8 {[%clk 0:03:00.1]} 11. Re1
{[%clk 0:03:04.9]} 11... a6 {[%clk 0:02:58.4]} 12. a4 {[%clk 0:03:05.6]} 12...
Ne5 {[%clk 0:02:57.9]} 13. Ra3 {[%clk 0:03:04.9]} 13... g5 {[%clk 0:02:54.9]}
14. Nf1 {[%clk 0:02:45.4]} 14... Rb8 {[%clk 0:02:44.8]} 15. Bxg5 {[%clk
0:02:43.7]} 15... Bd7 {[%clk 0:02:41.5]} 16. f4 {[%clk 0:02:40.3]} 16... Ng6
{[%clk 0:02:40.8]} 17. Ng3 {[%clk 0:01:52.1]} 17... h6 {[%clk 0:02:37.6]} 18.
Bxf6 {[%clk 0:01:51.4]} 18... Qxf6 {[%clk 0:02:34.6]} 19. Nh5 {[%clk 0:01:46.9]}
19... Qd4+ {[%clk 0:02:27.7]} 20. Kh1 {[%clk 0:01:47.3]} 20... b5 {[%clk
0:02:10.6]} 21. Nxg7 {[%clk 0:01:46.7]} 21... Qxg7 {[%clk 0:02:07.5]} 22. axb5
{[%clk 0:01:44.3]} 22... axb5 {[%clk 0:02:07.2]} 23. Ra7 {[%clk 0:01:43.9]}
23... b4 {[%clk 0:01:59.7]} 24. Rxd7 {[%clk 0:01:39.3]} 24... bxc3 {[%clk
0:01:59.2]} 25. bxc3 {[%clk 0:01:40.2]} 25... Nxf4 {[%clk 0:01:56.9]} 26. Bf1
{[%clk 0:01:39.8]} 26... Rb2 {[%clk 0:01:46.7]} 27. Qf3 {[%clk 0:01:37.6]} 27...
Qe5 {[%clk 0:01:30.2]} 28. g3 {[%clk 0:01:30.3]} 28... Qh5 {[%clk 0:01:04.8]}
29. Qxh5 {[%clk 0:01:29.9]} 29... Nxh5 {[%clk 0:01:04.9]} 30. Rxd6 {[%clk
0:01:30.1]} 30... Kg7 {[%clk 0:00:58.9]} 31. e5 {[%clk 0:01:29.3]} 31... Rd2
{[%clk 0:00:57.9]} 32. e6 {[%clk 0:01:26.9]} 32... fxe6 {[%clk 0:00:55.7]} 33.
Rdxe6 {[%clk 0:01:27.2]} 33... Rf8 {[%clk 0:00:47]} 34. Re7+ {[%clk 0:01:18.7]}
34... Kg6 {[%clk 0:00:46.9]} 35. Bg2 {[%clk 0:00:45.1]} 35... Rff2 {[%clk
0:00:43]} 36. R7e6+ {[%clk 0:00:42.8]} 36... Nf6 {[%clk 0:00:39.9]} 37. Be4+
{[%clk 0:00:35.7]} 37... Kg5 {[%clk 0:00:32.2]} 38. Re5+ {[%clk 0:00:34.1]}
38... Kg4 {[%clk 0:00:29.1]} 39. Kg1 {[%clk 0:00:25.5]} 39... Rxh2 {[%clk
0:00:22.1]} 40. Bh1 {[%clk 0:00:20.1]} 40... Kxg3 {[%clk 0:00:17.2]} 41. R5e3+
{[%clk 0:00:14.1]} 41... Kh4 {[%clk 0:00:17]} 42. c4 {[%clk 0:00:14.6]} 42...
Ng4 {[%clk 0:00:15.9]} 43. Re4 {[%clk 0:00:15.1]} 43... Kg5 {[%clk 0:00:15.7]}
44. d6 {[%clk 0:00:12.5]} 44... Rxh1+ {[%clk 0:00:15]} 45. Kxh1 {[%clk
0:00:12.5]} 45... Nf2+ {[%clk 0:00:15.3]} 46. Kg1 {[%clk 0:00:13]} 46... Nxe4
{[%clk 0:00:12.1]} 47. Rxe4 {[%clk 0:00:13.1]} 47... Kf5 {[%clk 0:00:07.9]} 48.
Rh4 {[%clk 0:00:09.1]} 48... Rxd6 {[%clk 0:00:04.2]} 49. Rh5+ {[%clk 0:00:09.6]}
49... Ke4 {[%clk 0:00:03.7]} 50. Rxc5 {[%clk 0:00:10.1]} 50... Kd4 {[%clk
0:00:03.2]} 51. Rc8 {[%clk 0:00:10.4]} 1-0

[Event "Early-Titled-Tuesday-Blitz-February-06-2024"]
[Site "Chess.com"]
[Date "2024.02.06"]
[Round "8"]
[White "Som2310"]
[Black "Fandorine"]
[Result "1/2-1/2"]
[WhiteElo "2809"]
[BlackElo "2963"]
[TimeControl "180+1"]
[EndTime "9:29:06 PST"]
[Termination "Game drawn by repetition"]

1. e4 {[%clk 0:03:00.9]} 1... e5 {[%clk 0:02:59.5]} 2. Nf3 {[%clk 0:03:01]} 2...
Nc6 {[%clk 0:02:59]} 3. d4 {[%clk 0:03:01.2]} 3... exd4 {[%clk 0:02:58.8]} 4.
Nxd4 {[%clk 0:03:01.5]} 4... Qf6 {[%clk 0:02:57.9]} 5. Be3 {[%clk 0:02:57.9]}
5... Bc5 {[%clk 0:02:57.3]} 6. c3 {[%clk 0:02:58.1]} 6... Nge7 {[%clk
0:02:53.8]} 7. Nc2 {[%clk 0:02:57.7]} 7... b6 {[%clk 0:02:50.1]} 8. Nd2 {[%clk
0:02:56.9]} 8... Bb7 {[%clk 0:02:49.5]} 9. Bxc5 {[%clk 0:02:54.7]} 9... bxc5
{[%clk 0:02:49.7]} 10. Ne3 {[%clk 0:02:53.9]} 10... Ne5 {[%clk 0:02:42.6]} 11.
g3 {[%clk 0:02:46.8]} 11... g5 {[%clk 0:02:36.8]} 12. Be2 {[%clk 0:02:36.7]}
12... O-O-O {[%clk 0:02:30.6]} 13. Qa4 {[%clk 0:02:11.1]} 13... Kb8 {[%clk
0:02:19.8]} 14. Rf1 {[%clk 0:02:09.4]} 14... d5 {[%clk 0:02:05.3]} 15. exd5
{[%clk 0:02:08.4]} 15... Nxd5 {[%clk 0:02:06.2]} 16. Nxd5 {[%clk 0:02:05.5]}
16... Rxd5 {[%clk 0:02:07.1]} 17. O-O-O {[%clk 0:02:05.2]} 17... Nd3+ {[%clk
0:01:44.5]} 18. Bxd3 {[%clk 0:02:02.2]} 18... Rxd3 {[%clk 0:01:45.4]} 19. Nb3
{[%clk 0:01:59.7]} 19... Rxd1+ {[%clk 0:01:37.6]} 20. Rxd1 {[%clk 0:01:59.8]}
20... Qxf2 {[%clk 0:01:34.7]} 21. Qd7 {[%clk 0:01:45.3]} 21... a6 {[%clk
0:00:34.2]} 22. Qd2 {[%clk 0:01:40]} 22... Qxd2+ {[%clk 0:00:28.5]} 23. Rxd2
{[%clk 0:01:39.9]} 23... c4 {[%clk 0:00:28.8]} 24. Na5 {[%clk 0:01:39.8]} 24...
Bc8 {[%clk 0:00:22.8]} 25. Nxc4 {[%clk 0:01:37.1]} 25... Be6 {[%clk 0:00:23.5]}
26. Na5 {[%clk 0:01:37.1]} 26... h5 {[%clk 0:00:23.5]} 27. Rd4 {[%clk
0:01:33.4]} 27... c5 {[%clk 0:00:21.9]} 28. Rd6 {[%clk 0:01:32.3]} 28... h4
{[%clk 0:00:21.9]} 29. Rb6+ {[%clk 0:01:02.4]} 29... Kc7 {[%clk 0:00:21]} 30.
Rc6+ {[%clk 0:01:02.6]} 30... Kd7 {[%clk 0:00:21.2]} 31. Rxc5 {[%clk 0:01:02.8]}
31... hxg3 {[%clk 0:00:21.6]} 32. hxg3 {[%clk 0:01:02.8]} 32... Rh1+ {[%clk
0:00:22.3]} 33. Kc2 {[%clk 0:01:02.5]} 33... Rh2+ {[%clk 0:00:22.9]} 34. Kd3
{[%clk 0:01:00.9]} 34... f6 {[%clk 0:00:16.8]} 35. b4 {[%clk 0:00:57.9]} 35...
Rh3 {[%clk 0:00:16.7]} 36. a4 {[%clk 0:00:58]} 36... Rxg3+ {[%clk 0:00:17.1]}
37. Kd4 {[%clk 0:00:58.2]} 37... Rg4+ {[%clk 0:00:17.4]} 38. Kd3 {[%clk
0:00:57.9]} 38... Rf4 {[%clk 0:00:17.8]} 39. Nc6 {[%clk 0:00:55.7]} 39... g4
{[%clk 0:00:18.1]} 40. Nd4 {[%clk 0:00:56]} 40... g3 {[%clk 0:00:18]} 41. Rc7+
{[%clk 0:00:56.2]} 41... Kd6 {[%clk 0:00:14.2]} 42. Rg7 {[%clk 0:00:54]} 42...
Bg4 {[%clk 0:00:07]} 43. Ke3 {[%clk 0:00:50.1]} 43... g2 {[%clk 0:00:07]} 44.
Kxf4 {[%clk 0:00:39.4]} 44... g1=Q {[%clk 0:00:07.5]} 45. Rxg4 {[%clk 0:00:40]}
45... Qc1+ {[%clk 0:00:07.1]} 46. Ke4 {[%clk 0:00:40.4]} 46... Qxc3 {[%clk
0:00:05.8]} 47. Rf4 {[%clk 0:00:39.7]} 47... Qe1+ {[%clk 0:00:04.6]} 48. Kd3
{[%clk 0:00:38.4]} 48... Qd1+ {[%clk 0:00:04.8]} 49. Ke3 {[%clk 0:00:36.6]}
49... Qc1+ {[%clk 0:00:04.9]} 50. Ke4 {[%clk 0:00:36.4]} 50... Qh1+ {[%clk
0:00:05.1]} 51. Ke3 {[%clk 0:00:36.4]} 51... Qg1+ {[%clk 0:00:05.1]} 52. Ke4
{[%clk 0:00:36.3]} 52... Qe1+ {[%clk 0:00:05.6]} 53. Kd3 {[%clk 0:00:36.3]}
53... Qb1+ {[%clk 0:00:02.1]} 54. Ke3 {[%clk 0:00:36.3]} 54... Ke7 {[%clk
0:00:02.6]} 55. b5 {[%clk 0:00:34.9]} 55... Qe1+ {[%clk 0:00:02.1]} 56. Kd3
{[%clk 0:00:34.6]} 56... axb5 {[%clk 0:00:02.7]} 57. axb5 {[%clk 0:00:34.4]}
57... Qd1+ {[%clk 0:00:03]} 58. Ke3 {[%clk 0:00:34.6]} 58... Qe1+ {[%clk
0:00:03]} 59. Kd3 {[%clk 0:00:34.9]} 59... Qb1+ {[%clk 0:00:03.7]} 60. Ke3
{[%clk 0:00:35]} 60... Qc1+ {[%clk 0:00:04.1]} 61. Ke4 {[%clk 0:00:34.4]} 61...
Qb1+ {[%clk 0:00:04]} 62. Ke3 {[%clk 0:00:34.5]} 62... Qe1+ {[%clk 0:00:04]} 63.
Kd3 {[%clk 0:00:34.7]} 1/2-1/2